[Event "Early-Titled-Tuesday-Blitz-February-13-2024"]
[Site "Chess.com"]
[Date "2024.02.13"]
[Round "10"]
[White "Chessdude1987"]
[Black "jaskol95"]
[Result "0-1"]
[WhiteElo "2388"]
[BlackElo "2582"]
[TimeControl "180+1"]
[EndTime "9:58:20 PST"]
[Termination "jaskol95 won by resignation"]

1. e4 {[%clk 0:03:00.9]} 1... d5 {[%clk 0:02:55.7]} 2. exd5 {[%clk 0:03:00.4]}
2... Nf6 {[%clk 0:02:56.2]} 3. c4 {[%clk 0:02:59]} 3... c6 {[%clk 0:02:51.2]} 4.
Nc3 {[%clk 0:02:56.8]} 4... cxd5 {[%clk 0:02:51.4]} 5. d4 {[%clk 0:02:56.9]}
5... Nc6 {[%clk 0:02:51.6]} 6. Nf3 {[%clk 0:02:55.5]} 6... Bg4 {[%clk
0:02:51.8]} 7. cxd5 {[%clk 0:02:55.2]} 7... Nxd5 {[%clk 0:02:50.1]} 8. Qb3
{[%clk 0:02:55.6]} 8... Bxf3 {[%clk 0:02:48.2]} 9. gxf3 {[%clk 0:02:55.1]} 9...
e6 {[%clk 0:02:40.8]} 10. Qxb7 {[%clk 0:02:52.2]} 10... Nxd4 {[%clk 0:02:35.1]}
11. Bb5+ {[%clk 0:02:44]} 11... Nxb5 {[%clk 0:02:35]} 12. Qc6+ {[%clk
0:02:35.9]} 12... Ke7 {[%clk 0:02:33.5]} 13. Qxb5 {[%clk 0:02:33]} 13... Qd7
{[%clk 0:02:19.8]} 14. Nxd5+ {[%clk 0:02:30]} 14... exd5 {[%clk 0:02:18.1]} 15.
Qxd7+ {[%clk 0:02:04.8]} 15... Kxd7 {[%clk 0:02:17.2]} 16. Be3 {[%clk
0:02:05.4]} 16... Be7 {[%clk 0:02:02.8]} 17. O-O-O {[%clk 0:01:56.9]} 17... Kc6
{[%clk 0:01:50.8]} 18. Rd3 {[%clk 0:01:56.4]} 18... Bf6 {[%clk 0:01:49.5]} 19.
Rhd1 {[%clk 0:01:52.1]} 19... Rhd8 {[%clk 0:01:49.6]} 20. R1d2 {[%clk
0:01:40.9]} 20... a5 {[%clk 0:01:46]} 21. Rc2+ {[%clk 0:01:38.2]} 21... Kd6
{[%clk 0:01:46.5]} 22. Bc5+ {[%clk 0:01:32.2]} 22... Ke6 {[%clk 0:01:44.5]} 23.
Bd4 {[%clk 0:01:23.1]} 23... Bxd4 {[%clk 0:01:40.8]} 24. Rxd4 {[%clk 0:01:23.4]}
24... Ke5 {[%clk 0:01:22]} 25. Ra4 {[%clk 0:01:10.6]} 25... Rdc8 {[%clk
0:01:16.9]} 26. Rxc8 {[%clk 0:01:09.6]} 26... Rxc8+ {[%clk 0:01:17.1]} 27. Kd2
{[%clk 0:01:10.5]} 27... Rc5 {[%clk 0:01:16.9]} 28. a3 {[%clk 0:01:08.9]} 28...
Rb5 {[%clk 0:01:06.1]} 29. b4 {[%clk 0:01:05.9]} 29... axb4 {[%clk 0:01:06.4]}
30. Rxb4 {[%clk 0:01:05.9]} 30... Rxb4 {[%clk 0:00:19.8]} 31. axb4 {[%clk
0:01:06]} 31... Kd4 {[%clk 0:00:20.4]} 32. Kc2 {[%clk 0:01:05.9]} 32... Kc4
{[%clk 0:00:20.4]} 33. b5 {[%clk 0:01:06.2]} 33... Kxb5 {[%clk 0:00:20.4]} 34.
Kd3 {[%clk 0:01:06.4]} 34... Kc5 {[%clk 0:00:21]} 35. f4 {[%clk 0:01:06.7]}
35... f5 {[%clk 0:00:21.1]} 36. h3 {[%clk 0:01:06.2]} 36... g6 {[%clk
0:00:21.1]} 37. h4 {[%clk 0:01:04.4]} 37... d4 {[%clk 0:00:21.2]} 38. f3 {[%clk
0:01:02.7]} 38... Kd5 {[%clk 0:00:21.3]} 39. Kd2 {[%clk 0:01:00.4]} 39... Kc4
{[%clk 0:00:21.4]} 40. Kc2 {[%clk 0:01:00.4]} 40... d3+ {[%clk 0:00:21.2]} 41.
Kd2 {[%clk 0:01:00.8]} 41... Kd4 {[%clk 0:00:21.6]} 0-1

[Event "Early-Titled-Tuesday-Blitz-February-13-2024"]
[Site "Chess.com"]
[Date "2024.02.13"]
[Round "10"]
[White "manitodeplomo"]
[Black "chess_blitz00"]
[Result "1-0"]
[WhiteElo "2649"]
[BlackElo "2467"]
[TimeControl "180+1"]
[EndTime "9:58:21 PST"]
[Termination "manitodeplomo won on time"]

1. d4 {[%clk 0:03:00.9]} 1... d6 {[%clk 0:02:58.4]} 2. Nf3 {[%clk 0:02:59.8]}
2... Nc6 {[%clk 0:02:44.2]} 3. d5 {[%clk 0:02:57.3]} 3... Ne5 {[%clk 0:02:41.9]}
4. Nc3 {[%clk 0:02:46.4]} 4... Nxf3+ {[%clk 0:02:38.1]} 5. exf3 {[%clk
0:02:43.9]} 5... e5 {[%clk 0:02:38.7]} 6. dxe6 {[%clk 0:02:39.1]} 6... Bxe6
{[%clk 0:02:37.7]} 7. Bf4 {[%clk 0:02:36.1]} 7... Nf6 {[%clk 0:02:35.5]} 8. Qd4
{[%clk 0:02:34.3]} 8... Be7 {[%clk 0:02:33.7]} 9. O-O-O {[%clk 0:02:33.9]} 9...
a6 {[%clk 0:02:30.6]} 10. g4 {[%clk 0:02:33]} 10... O-O {[%clk 0:02:29.5]} 11.
h4 {[%clk 0:02:31.3]} 11... Nd7 {[%clk 0:02:24.7]} 12. g5 {[%clk 0:02:27]} 12...
Nc5 {[%clk 0:02:01.2]} 13. Nd5 {[%clk 0:02:12.7]} 13... Re8 {[%clk 0:01:49.9]}
14. Nxe7+ {[%clk 0:01:56.6]} 14... Qxe7 {[%clk 0:01:45.3]} 15. Bd3 {[%clk
0:01:48.9]} 15... Nxd3+ {[%clk 0:01:44.2]} 16. Rxd3 {[%clk 0:01:49.8]} 16... Bf5
{[%clk 0:01:42.9]} 17. Re3 {[%clk 0:01:48.3]} 17... Qd7 {[%clk 0:01:42.1]} 18.
Rhe1 {[%clk 0:01:47.2]} 18... Re6 {[%clk 0:01:37.2]} 19. h5 {[%clk 0:01:44.4]}
19... Rae8 {[%clk 0:01:35.3]} 20. h6 {[%clk 0:01:44.3]} 20... f6 {[%clk
0:01:29.7]} 21. hxg7 {[%clk 0:01:42.5]} 21... Rxe3 {[%clk 0:01:05.4]} 22. Rxe3
{[%clk 0:01:41.6]} 22... Rxe3 {[%clk 0:00:47.6]} 23. Bxe3 {[%clk 0:01:34.7]}
23... fxg5 {[%clk 0:00:34.2]} 24. Qf6 {[%clk 0:01:24.8]} 24... Qf7 {[%clk
0:00:25.1]} 25. Qxg5 {[%clk 0:01:20.4]} 25... Bg6 {[%clk 0:00:16.8]} 26. Bd4
{[%clk 0:01:19.2]} 26... c5 {[%clk 0:00:10.2]} 27. Bc3 {[%clk 0:01:14.7]} 27...
b5 {[%clk 0:00:05.1]} 28. Qd8+ {[%clk 0:01:07.4]} 28... Qe8 {[%clk 0:00:05.2]}
29. Qxd6 {[%clk 0:01:07.5]} 29... b4 {[%clk 0:00:04.9]} 30. Be5 {[%clk
0:01:00.1]} 30... Bf7 {[%clk 0:00:03.1]} 31. Qxc5 {[%clk 0:00:58.1]} 1-0

[Event "Early-Titled-Tuesday-Blitz-February-13-2024"]
[Site "Chess.com"]
[Date "2024.02.13"]
[Round "10"]
[White "Dinosaurio_1975"]
[Black "esrosenberg"]
[Result "1-0"]
[WhiteElo "2596"]
[BlackElo "2432"]
[TimeControl "180+1"]
[EndTime "9:58:26 PST"]
[Termination "Dinosaurio_1975 won by resignation"]

1. Nf3 {[%clk 0:03:00.9]} 1... d5 {[%clk 0:02:59.6]} 2. e3 {[%clk 0:02:51]} 2...
c5 {[%clk 0:02:57.4]} 3. c4 {[%clk 0:02:43.9]} 3... d4 {[%clk 0:02:56.9]} 4.
exd4 {[%clk 0:02:43.3]} 4... cxd4 {[%clk 0:02:56]} 5. d3 {[%clk 0:02:42.6]} 5...
Nc6 {[%clk 0:02:55.6]} 6. g3 {[%clk 0:02:42.9]} 6... e5 {[%clk 0:02:52.6]} 7.
Bg2 {[%clk 0:02:43.3]} 7... Bb4+ {[%clk 0:02:50.5]} 8. Nbd2 {[%clk 0:02:42.2]}
8... a5 {[%clk 0:02:48.6]} 9. O-O {[%clk 0:02:42.2]} 9... Nge7 {[%clk
0:02:42.5]} 10. a3 {[%clk 0:02:40.5]} 10... Bd6 {[%clk 0:02:42.2]} 11. b3 {[%clk
0:02:40.1]} 11... O-O {[%clk 0:02:41.2]} 12. Rb1 {[%clk 0:02:40.3]} 12... f6
{[%clk 0:02:40.6]} 13. Ne4 {[%clk 0:02:39.4]} 13... Bg4 {[%clk 0:02:24.7]} 14.
c5 {[%clk 0:02:34.9]} 14... Bc7 {[%clk 0:02:24.3]} 15. b4 {[%clk 0:02:35.3]}
15... axb4 {[%clk 0:02:24]} 16. axb4 {[%clk 0:02:36.2]} 16... Kh8 {[%clk
0:02:22.3]} 17. h3 {[%clk 0:02:34.1]} 17... Be6 {[%clk 0:02:21.7]} 18. b5 {[%clk
0:02:26.2]} 18... Na5 {[%clk 0:02:09.3]} 19. b6 {[%clk 0:02:25.9]} 19... Bb8
{[%clk 0:02:09.5]} 20. Ra1 {[%clk 0:02:25.4]} 20... Ra6 {[%clk 0:02:05.9]} 21.
Bd2 {[%clk 0:02:22.8]} 21... Nb3 {[%clk 0:02:04.1]} 22. Rxa6 {[%clk 0:02:22.1]}
22... bxa6 {[%clk 0:02:05]} 23. Qc2 {[%clk 0:02:19.8]} 23... Nc6 {[%clk
0:01:55.7]} 24. Rb1 {[%clk 0:02:16]} 24... Nxd2 {[%clk 0:01:40.5]} 25. Nfxd2
{[%clk 0:02:08.9]} 25... Bd5 {[%clk 0:01:33.5]} 26. Nc4 {[%clk 0:02:05.4]} 26...
a5 {[%clk 0:01:18.7]} 27. Ned6 {[%clk 0:01:54.6]} 27... Bxg2 {[%clk 0:01:18.3]}
28. Kxg2 {[%clk 0:01:55.5]} 28... Bxd6 {[%clk 0:01:14]} 29. Nxd6 {[%clk
0:01:52.6]} 29... Nb4 {[%clk 0:01:12.5]} 30. Qc4 {[%clk 0:01:49]} 30... f5
{[%clk 0:01:05.3]} 31. Nf7+ {[%clk 0:01:46.7]} 31... Rxf7 {[%clk 0:01:04.8]} 32.
Qxf7 {[%clk 0:01:47.6]} 32... f4 {[%clk 0:01:02.7]} 33. b7 {[%clk 0:01:38]}
33... fxg3 {[%clk 0:01:00.3]} 34. fxg3 {[%clk 0:01:37.2]} 34... h6 {[%clk
0:00:59.9]} 35. c6 {[%clk 0:01:36.5]} 35... Nxc6 {[%clk 0:00:59]} 36. Rc1 {[%clk
0:01:26.4]} 36... Qb6 {[%clk 0:00:55.5]} 37. Qe8+ {[%clk 0:01:12.2]} 37... Kh7
{[%clk 0:00:54.8]} 38. Qxc6 {[%clk 0:01:12.7]} 38... Qb2+ {[%clk 0:00:54.9]} 39.
Rc2 {[%clk 0:01:13.1]} 39... Qb3 {[%clk 0:00:54.2]} 40. Qe4+ {[%clk 0:01:12.7]}
40... g6 {[%clk 0:00:52.5]} 41. Rc7+ {[%clk 0:01:12.2]} 41... Kh8 {[%clk
0:00:52.7]} 42. Qxe5+ {[%clk 0:01:11.9]} 1-0

[Event "Early-Titled-Tuesday-Blitz-February-13-2024"]
[Site "Chess.com"]
[Date "2024.02.13"]
[Round "10"]
[White "stratacticos"]
[Black "arnash_bauyrzhan"]
[Result "1-0"]
[WhiteElo "1981"]
[BlackElo "2236"]
[TimeControl "180+1"]
[EndTime "9:58:26 PST"]
[Termination "stratacticos won on time"]

1. e4 {[%clk 0:03:00.9]} 1... c5 {[%clk 0:02:59.1]} 2. Nc3 {[%clk 0:02:57.7]}
2... Nc6 {[%clk 0:02:58.1]} 3. g3 {[%clk 0:02:56.6]} 3... g6 {[%clk 0:02:58.1]}
4. Bg2 {[%clk 0:02:56]} 4... Bg7 {[%clk 0:02:58.3]} 5. d3 {[%clk 0:02:55.6]}
5... e6 {[%clk 0:02:58.5]} 6. Be3 {[%clk 0:02:53.3]} 6... d6 {[%clk 0:02:57.7]}
7. f4 {[%clk 0:02:47.6]} 7... Nge7 {[%clk 0:02:57.8]} 8. Nf3 {[%clk 0:02:47.2]}
8... Nd4 {[%clk 0:02:57.5]} 9. O-O {[%clk 0:02:43]} 9... O-O {[%clk 0:02:56.6]}
10. Qd2 {[%clk 0:02:41.4]} 10... Rb8 {[%clk 0:02:52.1]} 11. Nd1 {[%clk
0:02:40.4]} 11... b5 {[%clk 0:02:49.7]} 12. Ne1 {[%clk 0:02:39.8]} 12... b4
{[%clk 0:02:48.5]} 13. c3 {[%clk 0:02:39.4]} 13... bxc3 {[%clk 0:02:48.4]} 14.
bxc3 {[%clk 0:02:39]} 14... Ndc6 {[%clk 0:02:48.2]} 15. Nf3 {[%clk 0:02:32.8]}
15... Qa5 {[%clk 0:02:47]} 16. g4 {[%clk 0:02:22.1]} 16... Ba6 {[%clk
0:02:39.9]} 17. f5 {[%clk 0:02:20]} 17... exf5 {[%clk 0:02:09.1]} 18. gxf5
{[%clk 0:02:19.1]} 18... gxf5 {[%clk 0:02:04.3]} 19. Bh6 {[%clk 0:02:18.3]}
19... fxe4 {[%clk 0:01:58.1]} 20. Bxg7 {[%clk 0:02:16.7]} 20... Kxg7 {[%clk
0:01:57.7]} 21. Qg5+ {[%clk 0:02:06.2]} 21... Ng6 {[%clk 0:01:57.6]} 22. Nh4
{[%clk 0:02:05.4]} 22... Ne7 {[%clk 0:00:49.2]} 23. Qf6+ {[%clk 0:01:43.3]}
23... Kg8 {[%clk 0:00:48.8]} 24. Bxe4 {[%clk 0:01:40.8]} 24... c4 {[%clk
0:00:40.1]} 25. Ne3 {[%clk 0:01:32.4]} 25... Qc5 {[%clk 0:00:20.3]} 26. d4
{[%clk 0:01:29.7]} 26... Qh5 {[%clk 0:00:20.3]} 27. Nef5 {[%clk 0:01:23.3]}
27... Nxf5 {[%clk 0:00:16.2]} 28. Nxf5 {[%clk 0:01:22.9]} 28... Qg4+ {[%clk
0:00:11.5]} 29. Bg2 {[%clk 0:01:19.5]} 29... Qxf5 {[%clk 0:00:03.2]} 30. Rxf5
{[%clk 0:01:16.9]} 30... Rb2 {[%clk 0:00:02.5]} 31. Raf1 {[%clk 0:01:10.3]}
31... Bc8 {[%clk 0:00:01.6]} 32. Rg5 {[%clk 0:01:06.1]} 1-0

[Event "Early-Titled-Tuesday-Blitz-February-13-2024"]
[Site "Chess.com"]
[Date "2024.02.13"]
[Round "10"]
[White "lachesisQ"]
[Black "VladimirKramnik"]
[Result "1-0"]
[WhiteElo "3058"]
[BlackElo "2928"]
[TimeControl "180+1"]
[EndTime "9:58:27 PST"]
[Termination "lachesisQ won on time"]

1. e4 {[%clk 0:03:00.9]} 1... c5 {[%clk 0:02:58.5]} 2. Nf3 {[%clk 0:03:00.7]}
2... d6 {[%clk 0:02:58.6]} 3. d4 {[%clk 0:03:00.5]} 3... cxd4 {[%clk 0:02:58.5]}
4. Nxd4 {[%clk 0:03:01.4]} 4... Nf6 {[%clk 0:02:58.6]} 5. Nc3 {[%clk 0:03:02.1]}
5... a6 {[%clk 0:02:59]} 6. Bd3 {[%clk 0:03:02.8]} 6... Nc6 {[%clk 0:02:53.8]}
7. Nxc6 {[%clk 0:03:02.4]} 7... bxc6 {[%clk 0:02:54.3]} 8. b3 {[%clk 0:03:02.8]}
8... g6 {[%clk 0:02:54.6]} 9. Bb2 {[%clk 0:03:02.6]} 9... Bg7 {[%clk 0:02:55.3]}
10. O-O {[%clk 0:03:00.6]} 10... O-O {[%clk 0:02:45.2]} 11. Na4 {[%clk
0:03:00.6]} 11... Ng4 {[%clk 0:02:34.9]} 12. Bxg7 {[%clk 0:03:01.5]} 12... Kxg7
{[%clk 0:02:35]} 13. h3 {[%clk 0:02:58.2]} 13... Ne5 {[%clk 0:02:30.5]} 14. f4
{[%clk 0:02:58]} 14... Nxd3 {[%clk 0:02:30]} 15. Qxd3 {[%clk 0:02:57.4]} 15...
f6 {[%clk 0:02:20.7]} 16. Rad1 {[%clk 0:02:56.4]} 16... Qc7 {[%clk 0:02:18]} 17.
c4 {[%clk 0:02:55.6]} 17... c5 {[%clk 0:02:01.4]} 18. e5 {[%clk 0:02:25]} 18...
dxe5 {[%clk 0:01:50]} 19. fxe5 {[%clk 0:02:24.2]} 19... Qxe5 {[%clk 0:01:48.1]}
20. Rfe1 {[%clk 0:02:16]} 20... Qc7 {[%clk 0:01:47]} 21. Qe3 {[%clk 0:02:16]}
21... e5 {[%clk 0:01:37]} 22. Qxc5 {[%clk 0:02:15.9]} 22... Qxc5+ {[%clk
0:01:26.1]} 23. Nxc5 {[%clk 0:02:16.8]} 23... a5 {[%clk 0:01:24.6]} 24. Rd6
{[%clk 0:02:16]} 24... Ra7 {[%clk 0:01:14.9]} 25. Red1 {[%clk 0:02:09.1]} 25...
g5 {[%clk 0:00:57.9]} 26. Kf2 {[%clk 0:01:57.4]} 26... h5 {[%clk 0:00:54.7]} 27.
Ke3 {[%clk 0:01:57.3]} 27... Kg6 {[%clk 0:00:50.1]} 28. Ne4 {[%clk 0:01:50.3]}
28... Bf5 {[%clk 0:00:44.8]} 29. Rf1 {[%clk 0:01:50]} 29... Bxe4 {[%clk
0:00:30.6]} 30. Kxe4 {[%clk 0:01:50.9]} 30... g4 {[%clk 0:00:30.4]} 31. h4
{[%clk 0:01:50.1]} 31... Rc7 {[%clk 0:00:26.3]} 32. Rf5 {[%clk 0:01:45.9]} 32...
a4 {[%clk 0:00:18.2]} 33. Rxe5 {[%clk 0:01:41.3]} 33... axb3 {[%clk 0:00:18]}
34. axb3 {[%clk 0:01:42.2]} 34... Rb8 {[%clk 0:00:12.4]} 35. Rg5+ {[%clk
0:01:41.8]} 35... Kf7 {[%clk 0:00:11.7]} 36. Rxh5 {[%clk 0:01:42.2]} 36... Re7+
{[%clk 0:00:07.6]} 37. Kf4 {[%clk 0:01:37.9]} 37... Rxb3 {[%clk 0:00:05.6]} 38.
Rh7+ {[%clk 0:01:37.8]} 38... Ke8 {[%clk 0:00:05.4]} 39. Rh8+ {[%clk 0:01:24.3]}
39... Kf7 {[%clk 0:00:05.5]} 40. Rh6 {[%clk 0:01:25.2]} 40... Rc7 {[%clk
0:00:02.8]} 41. Rh7+ {[%clk 0:01:24.1]} 41... Kg6 {[%clk 0:00:02.3]} 42. Rxc7
{[%clk 0:01:25]} 1-0

[Event "Early-Titled-Tuesday-Blitz-February-13-2024"]
[Site "Chess.com"]
[Date "2024.02.13"]
[Round "10"]
[White "CSB7"]
[Black "Grossboss19"]
[Result "1-0"]
[WhiteElo "2771"]
[BlackElo "2614"]
[TimeControl "180+1"]
[EndTime "9:58:27 PST"]
[Termination "CSB7 won by resignation"]

1. c4 {[%clk 0:03:00.9]} 1... e6 {[%clk 0:02:50.4]} 2. g3 {[%clk 0:02:57.6]}
2... d5 {[%clk 0:02:51.3]} 3. Bg2 {[%clk 0:02:58]} 3... c5 {[%clk 0:02:40.3]} 4.
cxd5 {[%clk 0:02:55.4]} 4... exd5 {[%clk 0:02:40]} 5. Nf3 {[%clk 0:02:56]} 5...
Nc6 {[%clk 0:02:39.1]} 6. d4 {[%clk 0:02:53.9]} 6... Bg4 {[%clk 0:02:35.8]} 7.
Ne5 {[%clk 0:02:26]} 7... Nxe5 {[%clk 0:02:29.7]} 8. dxe5 {[%clk 0:02:26.9]}
8... Be6 {[%clk 0:02:29.9]} 9. Nc3 {[%clk 0:02:13.4]} 9... Ne7 {[%clk
0:02:27.2]} 10. Bg5 {[%clk 0:02:09.2]} 10... Qa5 {[%clk 0:02:21.9]} 11. O-O
{[%clk 0:01:42.1]} 11... Rd8 {[%clk 0:02:03.2]} 12. f4 {[%clk 0:01:27.5]} 12...
d4 {[%clk 0:01:56.6]} 13. Ne4 {[%clk 0:01:21.1]} 13... Nc6 {[%clk 0:01:51.4]}
14. Bxd8 {[%clk 0:01:17.5]} 14... Qxd8 {[%clk 0:01:52.3]} 15. Rc1 {[%clk
0:00:59.3]} 15... Bd5 {[%clk 0:01:50.5]} 16. Nxc5 {[%clk 0:00:53.1]} 16... Bxg2
{[%clk 0:01:46.3]} 17. Kxg2 {[%clk 0:00:54]} 17... Qd5+ {[%clk 0:01:45.7]} 18.
e4 {[%clk 0:00:54.5]} 18... Qxa2 {[%clk 0:01:40]} 19. Qb3 {[%clk 0:00:54.3]}
19... Qxb3 {[%clk 0:01:26.9]} 20. Nxb3 {[%clk 0:00:55.2]} 20... Bb4 {[%clk
0:01:22.1]} 21. Rfd1 {[%clk 0:00:54.1]} 21... O-O {[%clk 0:01:21.2]} 22. Nxd4
{[%clk 0:00:53.6]} 22... Na5 {[%clk 0:01:21.2]} 23. Nc2 {[%clk 0:00:46.8]} 23...
Be7 {[%clk 0:01:17.4]} 24. Ne3 {[%clk 0:00:40.2]} 24... Nc6 {[%clk 0:01:13.3]}
25. Rd7 {[%clk 0:00:38.6]} 25... Rb8 {[%clk 0:01:08.7]} 26. Rxc6 {[%clk
0:00:35.6]} 26... bxc6 {[%clk 0:01:08.5]} 27. Rxe7 {[%clk 0:00:36.2]} 27...
Rxb2+ {[%clk 0:01:09.1]} 28. Kf3 {[%clk 0:00:36.3]} 28... g6 {[%clk 0:01:07.5]}
29. f5 {[%clk 0:00:34]} 29... Rb8 {[%clk 0:00:58.8]} 30. Rxa7 {[%clk 0:00:32.9]}
30... Rc8 {[%clk 0:00:58.3]} 31. Nc4 {[%clk 0:00:29.7]} 31... c5 {[%clk
0:00:56]} 32. Nd6 {[%clk 0:00:30.1]} 32... Rc6 {[%clk 0:00:52.8]} 33. Ra8+
{[%clk 0:00:22.5]} 33... Kg7 {[%clk 0:00:51.6]} 34. f6+ {[%clk 0:00:22.8]} 34...
Kh6 {[%clk 0:00:51]} 35. Nxf7+ {[%clk 0:00:23.4]} 35... Kh5 {[%clk 0:00:51.9]}
36. Rh8 {[%clk 0:00:18.5]} 1-0

[Event "Early-Titled-Tuesday-Blitz-February-13-2024"]
[Site "Chess.com"]
[Date "2024.02.13"]
[Round "10"]
[White "LiadCuba"]
[Black "Orest_Vovk"]
[Result "1-0"]
[WhiteElo "2520"]
[BlackElo "2682"]
[TimeControl "180+1"]
[EndTime "9:58:28 PST"]
[Termination "LiadCuba won by checkmate"]

1. d4 {[%clk 0:03:00.9]} 1... h6 {[%clk 0:02:59.8]} 2. c4 {[%clk 0:03:01]} 2...
g5 {[%clk 0:02:59.5]} 3. e4 {[%clk 0:03:01.4]} 3... Bg7 {[%clk 0:02:57.1]} 4. h4
{[%clk 0:03:01.5]} 4... g4 {[%clk 0:02:56.8]} 5. Qxg4 {[%clk 0:02:53.9]} 5...
Bxd4 {[%clk 0:02:55.9]} 6. Qd1 {[%clk 0:02:53.9]} 6... Nc6 {[%clk 0:02:48.7]} 7.
Nf3 {[%clk 0:02:53.8]} 7... Bg7 {[%clk 0:02:48.4]} 8. Nc3 {[%clk 0:02:53]} 8...
Bxc3+ {[%clk 0:02:36.9]} 9. bxc3 {[%clk 0:02:53.9]} 9... d6 {[%clk 0:02:37.3]}
10. Nd4 {[%clk 0:02:52.8]} 10... Ne5 {[%clk 0:02:33.8]} 11. Be2 {[%clk
0:02:49.2]} 11... c5 {[%clk 0:02:31.7]} 12. Nc2 {[%clk 0:02:46.2]} 12... Qa5
{[%clk 0:02:30.7]} 13. O-O {[%clk 0:02:30]} 13... Nf6 {[%clk 0:02:21.7]} 14. Bf4
{[%clk 0:02:20.9]} 14... Rg8 {[%clk 0:02:10.9]} 15. Bxe5 {[%clk 0:02:13.4]}
15... dxe5 {[%clk 0:02:10.3]} 16. Ne3 {[%clk 0:02:13.8]} 16... Qxc3 {[%clk
0:02:03.3]} 17. Rb1 {[%clk 0:01:59.4]} 17... Qd4 {[%clk 0:01:56.1]} 18. Qc2
{[%clk 0:01:29.1]} 18... Qxe4 {[%clk 0:01:49.8]} 19. Bd3 {[%clk 0:01:24.3]}
19... Qxh4 {[%clk 0:01:40.8]} 20. Bf5 {[%clk 0:01:15.5]} 20... Bxf5 {[%clk
0:01:23.6]} 21. Nxf5 {[%clk 0:01:07.3]} 21... Qg5 {[%clk 0:01:05.3]} 22. f4
{[%clk 0:01:06.8]} 22... exf4 {[%clk 0:00:53.3]} 23. Rxb7 {[%clk 0:01:07]} 23...
Ng4 {[%clk 0:00:22.3]} 24. Qe4 {[%clk 0:00:25.8]} 24... Ne3 {[%clk 0:00:11.1]}
25. Rxe7+ {[%clk 0:00:24.9]} 25... Kf8 {[%clk 0:00:10.5]} 26. Qxa8# {[%clk
0:00:24.9]} 1-0

[Event "Early-Titled-Tuesday-Blitz-February-13-2024"]
[Site "Chess.com"]
[Date "2024.02.13"]
[Round "10"]
[White "BardArtem"]
[Black "KbzasDavid16"]
[Result "1-0"]
[WhiteElo "2766"]
[BlackElo "2561"]
[TimeControl "180+1"]
[EndTime "9:58:29 PST"]
[Termination "BardArtem won on time"]

1. e4 {[%clk 0:02:57.7]} 1... c5 {[%clk 0:02:56.6]} 2. c3 {[%clk 0:02:57.4]}
2... d5 {[%clk 0:02:54.8]} 3. exd5 {[%clk 0:02:55.7]} 3... Qxd5 {[%clk
0:02:55.7]} 4. d4 {[%clk 0:02:56.1]} 4... g6 {[%clk 0:02:47.3]} 5. Nf3 {[%clk
0:02:51.8]} 5... Bg7 {[%clk 0:02:46.7]} 6. Nbd2 {[%clk 0:02:49.9]} 6... Nf6
{[%clk 0:02:42.9]} 7. Bc4 {[%clk 0:02:46.2]} 7... Qf5 {[%clk 0:02:38.5]} 8. O-O
{[%clk 0:02:43.2]} 8... O-O {[%clk 0:02:34.7]} 9. Re1 {[%clk 0:02:41.3]} 9...
Nc6 {[%clk 0:02:33.3]} 10. dxc5 {[%clk 0:02:34.1]} 10... Qxc5 {[%clk 0:02:32]}
11. Qe2 {[%clk 0:02:33.9]} 11... b6 {[%clk 0:02:09.8]} 12. Nb3 {[%clk
0:02:25.9]} 12... Qd6 {[%clk 0:02:04]} 13. Bg5 {[%clk 0:02:26]} 13... Bb7 {[%clk
0:02:01.4]} 14. Rad1 {[%clk 0:02:24.9]} 14... Qc7 {[%clk 0:02:01.9]} 15. Nbd4
{[%clk 0:02:21.5]} 15... Nxd4 {[%clk 0:01:57.7]} 16. Nxd4 {[%clk 0:02:22.4]}
16... e6 {[%clk 0:01:44.5]} 17. Bb3 {[%clk 0:02:11.9]} 17... Ne4 {[%clk
0:01:37.7]} 18. Be3 {[%clk 0:02:09.3]} 18... Rfd8 {[%clk 0:01:31.8]} 19. Bxe6
{[%clk 0:01:55]} 19... Bxd4 {[%clk 0:00:47]} 20. Bxd4 {[%clk 0:01:38.7]} 20...
fxe6 {[%clk 0:00:45.4]} 21. f3 {[%clk 0:01:39.3]} 21... e5 {[%clk 0:00:41]} 22.
Be3 {[%clk 0:01:33.6]} 22... Nc5 {[%clk 0:00:39.6]} 23. Qc4+ {[%clk 0:01:29.4]}
23... Qf7 {[%clk 0:00:38.3]} 24. Qh4 {[%clk 0:01:30]} 24... Ne6 {[%clk 0:00:34]}
25. Bf2 {[%clk 0:01:25.5]} 25... Rd7 {[%clk 0:00:25.3]} 26. Rxd7 {[%clk
0:01:23.1]} 26... Qxd7 {[%clk 0:00:26.2]} 27. Rxe5 {[%clk 0:01:23.5]} 27... Rd8
{[%clk 0:00:21.2]} 28. Rxe6 {[%clk 0:01:21.4]} 28... Qd1+ {[%clk 0:00:07.8]} 29.
Re1 {[%clk 0:01:19.6]} 29... Qd2 {[%clk 0:00:06.8]} 30. Re7 {[%clk 0:01:12.3]}
30... h5 {[%clk 0:00:01.6]} 31. Qf6 {[%clk 0:01:10.8]} 31... Qc1+ {[%clk
0:00:01.4]} 32. Be1 {[%clk 0:01:10.2]} 32... Qh6 {[%clk 0:00:01.5]} 33. Rxb7
{[%clk 0:00:56.3]} 33... Qe3+ {[%clk 0:00:01.1]} 34. Kf1 {[%clk 0:00:56.8]}
34... Qd3+ {[%clk 0:00:01.1]} 35. Kf2 {[%clk 0:00:57.3]} 1-0